fUSD/lending_fUSD_20260504
["ID","MTS","AMOUNT","RATE_DAILY","PERIOD"]
[421557324,1777878473000,-1076.78123137,0.00017176,2]
[421557316,1777878473000,-500.0,0.00017176,2]
[421557320,1777878473000,-1127.63537576,0.00017176,2]
[421557319,1777878473000,-500.0,0.00017176,2]
[421557317,1777878473000,-1127.63537576,0.00017176,2]
[421557318,1777878473000,-1127.63537576,0.00017176,2]
[421557315,1777878473000,-1127.63537576,0.00017176,2]
[421557314,1777878473000,-1127.63537576,0.00017176,2]
[421557329,1777878473000,-500.0,0.00017176,2]
[421557322,1777878473000,-1127.63537576,0.00017176,2]
[421557332,1777878473000,-1076.78123137,0.00017176,2]
[421557350,1777878473000,-252.81883504,0.00017179,2]
[421557334,1777878473000,-1076.78123137,0.00017176,2]
[421557331,1777878473000,-300.0,0.00017176,2]
[421557351,1777878473000,-500.0,0.00017179,2]
[421557349,1777878473000,-500.0,0.00017179,2]
[421557348,1777878473000,-173.92542613,0.00017179,2]
[421557346,1777878473000,-500.0,0.00017179,2]
[421557347,1777878473000,-406.25569155,0.00017179,2]
[421557344,1777878473000,-1076.78123129,0.00017176,2]
[421557341,1777878473000,-1076.78123137,0.00017176,2]
[421557345,1777878473000,-2907.10316565,0.00017177,2]
[421557342,1777878473000,-1076.78123137,0.00017176,2]
[421557340,1777878473000,-1076.78123137,0.00017176,2]
[421557337,1777878473000,-1076.78123137,0.00017176,2]
[421557339,1777878473000,-1076.78123137,0.00017176,2]
[421557338,1777878473000,-1076.78123137,0.00017176,2]
[421557336,1777878473000,-1076.78123137,0.00017176,2]
[421557335,1777878473000,-1076.78123137,0.00017176,2]
[421557343,1777878473000,-1076.78123137,0.00017176,2]
[421557333,1777878473000,-1076.78123137,0.00017176,2]
[421557364,1777878474000,-150.0,0.00017346,2]
[421557365,1777878474000,-162.48539177,0.00017348,2]
[421557367,1777878474000,-2749.7622949,0.00017363,2]
[421557366,1777878474000,-5610.3681263,0.00017363,2]
[421557372,1777878474000,-1613.47,0.0001738,2]
[421557370,1777878474000,-1613.47,0.0001738,2]
[421557374,1777878474000,-1613.47,0.0001738,2]
[421557363,1777878474000,-160.0,0.00017344,2]
[421557368,1777878474000,-170.97092,0.0001737,2]
[421557361,1777878474000,-170.97093,0.0001732,2]
[421557354,1777878474000,-2000.0,0.00017181,2]
[421557360,1777878474000,-150.0,0.00017281,2]
[421557358,1777878474000,-153053.4384,0.00017281,2]
[421557359,1777878474000,-150.84129375,0.00017281,2]
[421557355,1777878474000,-2410.0215,0.00017181,2]
[421557357,1777878474000,-500.0,0.00017197,2]
[421557356,1777878474000,-319.0,0.00017197,2]
[421557353,1777878474000,-17462.3527,0.00017181,2]
[421557352,1777878474000,-593622.7293,0.0001718,2]
[421557373,1777878474000,-1613.47,0.0001738,2]
[421557362,1777878474000,-200.0,0.00017341,2]
[421557371,1777878474000,-1613.47,0.0001738,2]
[421557369,1777878474000,-500.0,0.0001738,2]
[421557376,1777878474000,-1613.47,0.0001738,2]
[421557375,1777878474000,-1613.47,0.0001738,2]
[421557394,1777878474000,-1000.0,0.00017481,2]
[421557395,1777878474000,-1000.0,0.00017481,2]
[421557392,1777878474000,-1000.0,0.00017481,2]
[421557393,1777878474000,-1000.0,0.00017481,2]
[421557390,1777878474000,-1000.0,0.00017481,2]
[421557391,1777878474000,-1000.0,0.00017481,2]
[421557389,1777878474000,-1000.0,0.00017481,2]
[421557388,1777878474000,-1000.0,0.00017481,2]
[421557387,1777878474000,-1000.0,0.00017481,2]
[421557397,1777878474000,-1000.0,0.00017481,2]
[421557386,1777878474000,-1000.0,0.00017481,2]
[421557384,1777878474000,-1000.0,0.00017481,2]
[421557382,1777878474000,-170.97093,0.0001747,2]
[421557383,1777878474000,-1000.0,0.00017481,2]
[421557381,1777878474000,-170.97093,0.0001742,2]
[421557378,1777878474000,-200.0,0.00017381,2]
[421557396,1777878474000,-1000.0,0.00017481,2]
[421557380,1777878474000,-151.0,0.00017381,2]
[421557379,1777878474000,-200.0,0.00017381,2]
[421557377,1777878474000,-200.0,0.00017381,2]
[421557385,1777878474000,-1000.0,0.00017481,2]
[421557409,1777878475000,-1613.47,0.00017683,2]
[421557410,1777878475000,-179.0,0.00017691,2]
[421557411,1777878475000,-2000.0,0.00017692,2]
[421557414,1777878475000,-350.0,0.00018,2]
[421557415,1777878475000,-678.19264588,0.000182,2]
[421557412,1777878475000,-166.4,0.00017943,2]
[421557408,1777878475000,-1613.47,0.00017683,2]
[421557413,1777878475000,-678.19264588,0.00018,2]
[421557404,1777878475000,-152.11507395,0.00017481,2]
[421557402,1777878475000,-1000.0,0.00017481,2]
[421557407,1777878475000,-1613.47,0.00017683,2]
[421557405,1777878475000,-170.97093,0.00017481,2]
[421557403,1777878475000,-1040.58406108,0.00017481,2]
[421557401,1777878475000,-1000.0,0.00017481,2]
[421557399,1777878475000,-1000.0,0.00017481,2]
[421557400,1777878475000,-1000.0,0.00017481,2]
[421557398,1777878475000,-1000.0,0.00017481,2]
[421557416,1777878475000,-10043.35,0.00018276,2]
[421557406,1777878475000,-170.97092,0.00017481,2]
[421557418,1777878475000,-329.2,0.0001841,2]
[421557417,1777878475000,-678.19264588,0.000184,2]
[421557419,1777878475000,-231.538251,0.00018442,2]
[421557438,1777878475000,-384.0,0.00018979,2]
[421557436,1777878475000,-422.0,0.00018962,2]
[421557433,1777878475000,-200.395555,0.00018938,7]
[421557432,1777878475000,-163.308612,0.00018938,2]
[421557435,1777878475000,-416.0,0.00018961,2]
[421557434,1777878475000,-422.0,0.00018939,2]
[421557428,1777878475000,-422.0,0.00018912,2]
[421557431,1777878475000,-393.0,0.0001893,2]
[421557430,1777878475000,-516.07574477,0.00018928,2]
[421557437,1777878475000,-422.0,0.00018978,2]
[421557427,1777878475000,-384.0,0.00018908,2]
[421557426,1777878475000,-1103.47,0.00018856,2]
[421557423,1777878475000,-578.20924308,0.00018584,2]
[421557424,1777878475000,-166.4,0.00018654,2]
[421557425,1777878475000,-678.19264588,0.000187,2]
[421557421,1777878475000,-9999.99,0.00018533,2]
[421557422,1777878475000,-150.99,0.00018533,2]
[421557420,1777878475000,-678.19264588,0.000185,2]
[421557429,1777878475000,-422.0,0.00018919,2]
[421557451,1777878476000,-516.07574477,0.00019047,2]
[421557453,1777878476000,-417.0,0.00019056,2]
[421557452,1777878476000,-422.0,0.00019052,2]
[421557457,1777878476000,-516.07574477,0.0001907,2]
[421557458,1777878476000,-422.0,0.00019089,2]
[421557454,1777878476000,-928.0,0.00019056,2]
[421557450,1777878476000,-422.0,0.00019045,2]
[421557456,1777878476000,-422.0,0.00019065,2]
[421557455,1777878476000,-1221.0,0.00019056,2]
[421557448,1777878476000,-384.0,0.00019038,2]
[421557446,1777878476000,-533.0,0.00019036,2]
[421557445,1777878476000,-384.0,0.00019034,2]
[421557447,1777878476000,-384.0,0.00019038,2]
[421557441,1777878476000,-416.0,0.00018981,2]
[421557443,1777878476000,-516.07574477,0.00019014,2]
[421557444,1777878476000,-422.0,0.00019023,2]
[421557442,1777878476000,-384.0,0.00019011,2]
[421557440,1777878476000,-422.0,0.0001898,2]
[421557460,1777878476000,-384.0,0.00019108,2]
[421557439,1777878476000,-384.0,0.00018979,2]
[421557449,1777878476000,-422.0,0.00019038,2]
[421557459,1777878476000,-399.36217351,0.00019102,2]
[421557483,1777878476000,-2000.0,0.00019658,2]
[421557462,1777878476000,-422.0,0.00019123,2]
[421557461,1777878476000,-384.0,0.00019112,2]
[421557480,1777878476000,-3420.01235437,0.00019616,2]
[421557482,1777878476000,-516.07574477,0.00019645,2]
[421557481,1777878476000,-1587.90043698,0.00019626,2]
[421557478,1777878476000,-516.07574477,0.00019389,2]
[421557479,1777878476000,-1403.27475261,0.0001958,2]
[421557475,1777878476000,-1267.0,0.00019324,2]
[421557477,1777878476000,-166.4,0.00019365,2]
[421557473,1777878476000,-622.0,0.00019324,2]
[421557476,1777878476000,-516.07574477,0.00019339,2]
[421557484,1777878476000,-516.07574477,0.00019659,2]
[421557471,1777878476000,-1351.0,0.00019324,2]
[421557474,1777878476000,-6040.0,0.00019324,2]
[421557465,1777878476000,-500.0,0.00019178,2]
[421557464,1777878476000,-500.0,0.00019178,2]
[421557466,1777878476000,-500.0,0.00019178,2]
[421557463,1777878476000,-500.0,0.00019178,2]
[421557468,1777878476000,-516.07574477,0.00019263,2]
[421557470,1777878476000,-150.235,0.00019324,2]
[421557472,1777878476000,-3545.868,0.00019324,2]
[421557469,1777878476000,-614.0,0.00019324,5]
[421557467,1777878476000,-516.07574477,0.00019198,2]
[421557494,1777878477000,-500.0,0.00019726,2]
[421557500,1777878477000,-332.63579,0.00019726,2]
[421557502,1777878477000,-332.63579,0.00019726,2]
[421557501,1777878477000,-332.63579,0.00019726,2]
[421557499,1777878477000,-151.0,0.00019726,2]
[421557498,1777878477000,-509.972563,0.00019726,2]
[421557497,1777878477000,-500.0,0.00019726,2]
[421557496,1777878477000,-500.0,0.00019726,2]
[421557493,1777878477000,-517.04496255,0.00019726,2]
[421557488,1777878477000,-500.0,0.00019726,2]
[421557492,1777878477000,-500.0,0.00019726,2]
[421557491,1777878477000,-500.0,0.00019726,2]
[421557490,1777878477000,-500.0,0.00019726,2]
[421557489,1777878477000,-500.0,0.00019726,2]
[421557487,1777878477000,-500.0,0.00019726,2]
[421557485,1777878477000,-155.0,0.00019725,2]
[421557486,1777878477000,-151.0,0.00019726,2]
[421557503,1777878477000,-332.63579,0.00019726,2]
[421557495,1777878477000,-500.0,0.00019726,2]
[421557507,1777878477000,-151.0,0.00019726,2]
[421557511,1777878477000,-2650.0,0.00019726,2]
[421557506,1777878477000,-151.0,0.00019726,2]
[421557525,1777878477000,-500.0,0.00019726,2]
[421557524,1777878477000,-545.0,0.00019726,2]
[421557523,1777878477000,-500.0,0.00019726,2]
[421557522,1777878477000,-545.0,0.00019726,2]
[421557520,1777878477000,-545.0,0.00019726,2]
[421557521,1777878477000,-500.0,0.00019726,2]
[421557516,1777878477000,-2650.0,0.00019726,2]
[421557519,1777878477000,-545.0,0.00019726,2]
[421557518,1777878477000,-545.0,0.00019726,2]
[421557505,1777878477000,-516.08828087,0.00019726,2]
[421557513,1777878477000,-2650.0,0.00019726,2]
[421557515,1777878477000,-2650.0,0.00019726,2]
[421557514,1777878477000,-2650.0,0.00019726,2]
[421557512,1777878477000,-150.0,0.00019726,2]
[421557509,1777878477000,-2650.0,0.00019726,2]
[421557526,1777878477000,-545.0,0.00019726,2]
[421557510,1777878477000,-641.04559616,0.00019726,2]
[421557508,1777878477000,-500.0,0.00019726,2]
[421557504,1777878477000,-500.0,0.00019726,2]
[421557517,1777878477000,-545.0,0.00019726,2]
[421557540,1777878478000,-150.0,0.00019726,2]
[421557541,1777878478000,-545.0,0.00019726,2]
[421557543,1777878478000,-545.0,0.00019726,2]
[421557546,1777878478000,-2650.0,0.00019726,2]
[421557544,1777878478000,-2650.0,0.00019726,2]
[421557542,1777878478000,-2650.0,0.00019726,2]
[421557538,1777878478000,-545.0,0.00019726,2]
[421557545,1777878478000,-545.0,0.00019726,2]
[421557539,1777878478000,-2650.0,0.00019726,2]
[421557536,1777878478000,-545.0,0.00019726,2]
[421557534,1777878478000,-2650.0,0.00019726,2]
[421557533,1777878478000,-545.0,0.00019726,2]
[421557535,1777878478000,-2650.0,0.00019726,2]
[421557531,1777878478000,-462.20500343,0.00019726,2]
[421557532,1777878478000,-2650.0,0.00019726,2]
[421557530,1777878478000,-500.0,0.00019726,2]
[421557528,1777878478000,-545.0,0.00019726,2]
[421557527,1777878478000,-500.0,0.00019726,2]
[421557547,1777878478000,-545.0,0.00019726,2]
[421557537,1777878478000,-2650.0,0.00019726,2]
[421557548,1777878478000,-2650.0,0.00019726,2]
[421557529,1777878478000,-2650.0,0.00019726,2]
[421557550,1777878478000,-2650.0,0.00019726,2]
[421557549,1777878478000,-545.0,0.00019726,2]
[421557569,1777878478000,-500.0,0.00019726,2]
[421557567,1777878478000,-545.0,0.00019726,2]
[421557570,1777878478000,-500.0,0.00019726,2]
[421557568,1777878478000,-262.36621961,0.00019726,2]
[421557566,1777878478000,-2650.0,0.00019726,2]
[421557564,1777878478000,-2650.0,0.00019726,2]
[421557563,1777878478000,-545.0,0.00019726,2]
[421557561,1777878478000,-256.42418772,0.00019726,2]
[421557562,1777878478000,-2650.0,0.00019726,2]
[421557565,1777878478000,-545.0,0.00019726,2]
[421557556,1777878478000,-150.0,0.00019726,2]
[421557558,1777878478000,-2650.0,0.00019726,2]
[421557557,1777878478000,-212.43175896,0.00019726,2]
[421557559,1777878478000,-545.0,0.00019726,2]
[421557555,1777878478000,-150.0,0.00019726,2]
[421557554,1777878478000,-545.0,0.00019726,2]
[421557551,1777878478000,-545.0,0.00019726,2]
[421557553,1777878478000,-150.0,0.00019726,2]
[421557560,1777878478000,-150.0,0.00019726,2]
[421557552,1777878478000,-2650.0,0.00019726,2]
[421557584,1777878479000,-259.491935,0.00019726,2]
[421557585,1777878479000,-151.0,0.00019726,2]
[421557586,1777878479000,-259.491935,0.00019726,2]
[421557589,1777878479000,-259.491935,0.00019726,2]
[421557590,1777878479000,-516.07574477,0.00019733,2]
[421557588,1777878479000,-259.491935,0.00019726,2]
[421557583,1777878479000,-2971.998394,0.00019726,2]
[421557587,1777878479000,-151.0,0.00019726,2]
[421557582,1777878479000,-2971.998394,0.00019726,2]
[421557571,1777878479000,-500.0,0.00019726,2]
[421557580,1777878479000,-2971.998394,0.00019726,2]
[421557581,1777878479000,-2971.998394,0.00019726,2]
[421557579,1777878479000,-548.01126023,0.00019726,2]
[421557575,1777878479000,-545.0,0.00019726,2]
[421557577,1777878479000,-532.27311781,0.00019726,2]
[421557576,1777878479000,-500.0,0.00019726,2]
[421557574,1777878479000,-500.0,0.00019726,2]
[421557573,1777878479000,-2650.0,0.00019726,2]
[421557572,1777878479000,-500.0,0.00019726,2]
[421557591,1777878479000,-516.07574477,0.00019748,2]
[421557578,1777878479000,-2653.17158078,0.00019726,2]
[421557593,1777878479000,-400.0,0.000199,7]
[421557598,1777878479000,-516.07574477,0.00019972,2]
[421557594,1777878479000,-516.07574477,0.00019908,2]
[421557614,1777878479000,-247.203701,0.00020306,2]
[421557615,1777878479000,-1000.0,0.00020321,2]
[421557613,1777878479000,-166.4,0.00020076,2]
[421557595,1777878479000,-516.07574477,0.00019939,2]
[421557612,1777878479000,-403.0,0.0002,2]
[421557610,1777878479000,-1027.0,0.0002,2]
[421557606,1777878479000,-279.0,0.0002,2]
[421557608,1777878479000,-319.0,0.0002,2]
[421557609,1777878479000,-6171.0,0.0002,2]
[421557605,1777878479000,-400.0,0.0002,2]
[421557611,1777878479000,-150.0,0.0002,10]
[421557602,1777878479000,-151.0,0.0002,2]
[421557601,1777878479000,-440.0,0.0002,2]
[421557603,1777878479000,-193.0,0.0002,2]
[421557604,1777878479000,-1691.0,0.0002,2]
[421557600,1777878479000,-206.47,0.0002,2]
[421557599,1777878479000,-566.0,0.0002,5]
[421557596,1777878479000,-516.07574477,0.00019941,2]
[421557597,1777878479000,-151.0,0.00019941,2]
[421557592,1777878479000,-500.0,0.00019773,2]
[421557607,1777878479000,-233.0,0.0002,2]
[421557626,1777878480000,-319.0,0.00021,2]
[421557627,1777878480000,-1027.0,0.00021,2]
[421557625,1777878480000,-233.0,0.00021,2]
[421557623,1777878480000,-1691.0,0.00021,2]
[421557624,1777878480000,-279.0,0.00021,2]
[421557618,1777878480000,-200.0,0.000206,2]
[421557622,1777878480000,-193.0,0.00021,2]
[421557619,1777878480000,-1500.0,0.00020868,2]
[421557620,1777878480000,-440.0,0.00021,2]
[421557616,1777878480000,-1613.47,0.00020341,2]
[421557617,1777878480000,-329.2,0.00020381,2]
[421557621,1777878480000,-151.0,0.00021,2]
[421557629,1777878480000,-2000.0,0.00021624,2]
[421557632,1777878480000,-151.0,0.00022,2]
[421557631,1777878480000,-440.0,0.00022,2]
[421557628,1777878480000,-403.0,0.00021,2]
[421557643,1777878480000,-1403.27475261,0.00022079,2]
[421557641,1777878480000,-417.0,0.00022056,2]
[421557639,1777878480000,-1027.0,0.00022,2]
[421557642,1777878480000,-928.0,0.00022056,2]
[421557638,1777878480000,-319.0,0.00022,2]
[421557640,1777878480000,-403.0,0.00022,2]
[421557636,1777878480000,-279.0,0.00022,2]
[421557634,1777878480000,-1691.0,0.00022,2]
[421557635,1777878480000,-450.0,0.00022,2]
[421557633,1777878480000,-193.0,0.00022,2]
[421557630,1777878480000,-5000.0,0.00021918,2]
[421557637,1777878480000,-233.0,0.00022,2]
[421557645,1777878481000,-3420.01235437,0.00022152,2]
[421557644,1777878481000,-266.94,0.0002213,2]
[421557646,1777878481000,-720.0,0.00022237,7]
[421557647,1777878481000,-466.0,0.00022237,7]
[421557649,1777878481000,-329.2,0.00022353,2]
[421557650,1777878481000,-218.25892209,0.00022562,2]
[421557648,1777878481000,-6040.0,0.00022324,2]
[421557651,1777878522000,280.0,8.219e-05,2]
[421557653,1777878548000,560.48,0.00022,30]
[421557652,1777878548000,569.17,0.0002,30]
[421557654,1777878549000,464.47,0.00024,60]
[421557659,1777878631000,-280.0,0.00017033,2]
[421557665,1777878632000,-2002.04656949,0.00017076,2]
[421557660,1777878632000,-374.72900572,0.00017076,2]
[421557661,1777878632000,-1403.85738872,0.00017076,2]
[421557664,1777878632000,-2726.52883703,0.00017076,2]
[421557662,1777878632000,-478.1525041,0.00017076,2]
[421557663,1777878632000,-5218.79958262,0.00017076,2]
[421557667,1777878632000,-1641.67818711,0.00017076,2]
[421557672,1777878632000,-271.17317545,0.00017076,2]
[421557668,1777878632000,-530.57794545,0.00017076,2]
[421557669,1777878632000,-689.16136204,0.00017076,2]
[421557671,1777878632000,-147869.66147144,0.00017076,2]
[421557670,1777878632000,-200165.74385197,0.00017076,2]
[421557666,1777878632000,-1174.89221944,0.00017076,2]
[421557679,1777878638000,-4131.57449147,0.00017076,2]
[421557682,1777878638000,-40370.29201201,0.00017076,2]
[421557681,1777878638000,-935.09181718,0.00017076,2]
[421557680,1777878638000,-650.24869359,0.00017076,2]
[421557685,1777878640000,-2943.95635846,0.00017076,2]
[421557684,1777878640000,-3370.43061789,0.00017076,2]
[421557686,1777878640000,-5239.89376426,0.00017076,2]
[421557689,1777878640000,-43026.04108691,0.00017076,2]
[421557690,1777878640000,-856.83101174,0.00017076,2]
[421557691,1777878640000,-16500.0,0.00017076,2]
[421557687,1777878640000,-798.93,0.00017076,2]
[421557706,1777878646000,-1220.52685329,0.00017076,2]
[421557707,1777878646000,-982.07925712,0.00017076,2]
[421557708,1777878646000,-522.62702627,0.00017076,2]
[421557705,1777878646000,-388.94193208,0.00017076,2]
[421557704,1777878646000,-1209.3563739,0.00017076,2]
[421557703,1777878646000,-343.10411232,0.00017076,2]
[421557702,1777878646000,-92.52077459,0.00017076,2]
[421557700,1777878646000,-1141.95986912,0.00017076,2]
[421557701,1777878646000,-2300.18457912,0.00017076,2]
[421557742,1777878650000,-58490.9263681,0.00017076,2]
[421557744,1777878650000,-625.54012998,0.0001708,2]
[421557747,1777878650000,-9582.48,0.0001708,2]
[421557745,1777878650000,-1908.62734948,0.0001708,2]
[421557746,1777878650000,-761.25738331,0.0001708,2]
[421557743,1777878650000,-11618.19763438,0.0001708,2]
[421557748,1777878690000,247.48936278,0.0001,2]
[421557749,1777878978000,280.0,8.219e-05,2]
[421557750,1777879276000,-153.66,8.83e-05,2]
[421557752,1777879297000,194.71806792,8.219e-05,2]
[421557751,1777879297000,85.28193208,8.219e-05,2]
[421557753,1777879401000,280.0,8.219e-05,2]
[421557754,1777879705000,7546.66197032,0.000295,120]
[421557755,1777879824000,280.0,8.219e-05,2]
[421557779,1777879832000,-420.0,0.00016191,2]
[421557787,1777879832000,-318.93962997,0.00016876,2]
[421557796,1777879832000,-13036.606,0.00016976,2]
[421557783,1777879832000,-501.79166808,0.00016823,2]
[421557795,1777879832000,-204.5796,0.00016976,2]
[421557785,1777879832000,-255.8712075,0.00016823,2]
[421557794,1777879832000,-178.0,0.00016975,2]
[421557777,1777879832000,-300.0,0.00016,2]
[421557790,1777879832000,-458.44747329,0.00016876,2]
[421557800,1777879832000,-260.48398543,0.00017018,2]
[421557792,1777879832000,-388.8323745,0.00016876,2]
[421557793,1777879832000,-2291.64015764,0.00016876,2]
[421557798,1777879832000,-385.0,0.0001698,2]
[421557776,1777879832000,-197.09318302,0.00015954,2]
[421557804,1777879832000,-500.0,0.00017075,2]
[421557817,1777879832000,-894.8,0.00017179,2]
[421557809,1777879832000,-160.0,0.0001712,2]
[421557815,1777879832000,-602.85351632,0.00017179,2]
[421557811,1777879832000,-264.24589981,0.00017179,2]
[421557791,1777879832000,-4775.8559646,0.00016876,2]
[421557774,1777879832000,-151.0,0.00015954,2]
[421557782,1777879832000,-563.3706086,0.00016823,2]
[421557778,1777879832000,-260.48398543,0.00016159,2]
[421557813,1777879832000,-500.0,0.00017179,2]
[421557759,1777879832000,-300.0,0.00014791,2]
[421557756,1777879832000,-250.0,0.00014,2]
[421557758,1777879832000,-600.0,0.00014489,2]
[421557757,1777879832000,-2500.0,0.00014244,2]
[421557761,1777879832000,-2500.0,0.00014792,2]
[421557760,1777879832000,-2500.0,0.00014792,2]
[421557762,1777879832000,-2500.0,0.00014792,2]
[421557764,1777879832000,-622.58627524,0.00015194,2]
[421557775,1777879832000,-156.587,0.00015954,2]
[421557765,1777879832000,-260.48398543,0.000153,2]
[421557767,1777879832000,-210.66506833,0.000154,2]
[421557770,1777879832000,-784.80750571,0.000154,2]
[421557769,1777879832000,-600.0,0.000154,2]
[421557763,1777879832000,-300.0,0.00014977,2]
[421557768,1777879832000,-250.0,0.000154,2]
[421557773,1777879832000,-1200.0,0.00015953,2]
[421557781,1777879832000,-1347.48025473,0.00016823,2]
[421557780,1777879832000,-219.5,0.00016438,2]
[421557772,1777879832000,-300.0,0.0001564,2]
[421557771,1777879832000,-1715.19249429,0.000154,2]
[421557802,1777879832000,-500.0,0.00017075,2]
[421557766,1777879832000,-300.0,0.000154,2]
[421557807,1777879832000,-633.12665658,0.00017076,2]
[421557867,1777879832000,-185.35945881,0.000185,2]
[421557870,1777879832000,-500.0,0.00018855,2]
[421557874,1777879832000,-224.60245493,0.00018855,2]
[421557882,1777879832000,-500.0,0.00018855,2]
[421557872,1777879832000,-500.0,0.00018855,2]
[421557888,1777879832000,-500.0,0.00018855,2]
[421557876,1777879832000,-500.0,0.00018855,2]
[421557889,1777879832000,-500.0,0.00018855,2]
[421557887,1777879832000,-500.0,0.00018855,2]
[421557860,1777879832000,-185.35945881,0.000182,2]
[421557894,1777879832000,-9008.66,0.00018856,2]
[421557878,1777879832000,-500.0,0.00018855,2]
[421557884,1777879832000,-500.0,0.00018855,2]
[421557880,1777879832000,-500.0,0.00018855,2]
[421557886,1777879832000,-500.0,0.00018855,2]
[421557890,1777879832000,-500.0,0.00018855,2]
[421557891,1777879832000,-500.0,0.00018855,2]
[421557895,1777879832000,-355.58610813,0.00018923,2]
[421557892,1777879832000,-500.0,0.00018855,2]
[421557893,1777879832000,-500.0,0.00018855,2]
[421557885,1777879832000,-500.0,0.00018855,2]
[421557862,1777879832000,-185.35945881,0.000184,2]
[421557805,1777879832000,-209.56355865,0.00017076,2]
[421557854,1777879832000,-350.0,0.00018,2]
[421557864,1777879832000,-219.5,0.0001841,2]
[421557818,1777879832000,-894.8,0.00017179,2]
[421557821,1777879832000,-1531.16612,0.00017186,2]
[421557822,1777879832000,-5138.941607,0.00017189,2]
[421557834,1777879832000,-2463.0,0.00017491,2]
[421557840,1777879832000,-180.0,0.00017691,2]
[421557836,1777879832000,-170.38,0.00017567,2]
[421557838,1777879832000,-1857.79392881,0.00017691,2]
[421557832,1777879832000,-500.0,0.00017455,2]
[421557826,1777879832000,-27678.7650388,0.00017189,2]
[421557824,1777879832000,-1551.4776092,0.00017189,2]
[421557828,1777879832000,-200.0,0.0001728,2]
[421557844,1777879832000,-587.0,0.00017724,2]
[421557842,1777879832000,-200.0,0.00017718,2]
[421557846,1777879832000,-150.0,0.00017747,2]
[421557848,1777879832000,-153.45,0.00017778,2]
[421557850,1777879832000,-2000.0,0.00017782,2]
[421557856,1777879832000,-185.35945881,0.00018,2]
[421557858,1777879832000,-280.0,0.00018062,2]
[421557830,1777879832000,-894.8,0.0001728,2]
[421557852,1777879832000,-328.03,0.00017812,2]
[421557948,1777879833000,-4274.0,0.00021,2]
[421557935,1777879833000,-1523.0,0.00021,2]
[421557933,1777879833000,-164.0,0.00021,2]
[421557931,1777879833000,-110975.2277104,0.00020998,2]
[421557940,1777879833000,-198.0,0.00021,2]
[421557930,1777879833000,-500.0,0.00020997,2]
[421557946,1777879833000,-351.0,0.00021,2]
[421557942,1777879833000,-271.0,0.00021,2]
[421557938,1777879833000,-251.0,0.00021,2]
[421557950,1777879833000,-382.0,0.00021,2]
[421557944,1777879833000,-1333.0,0.00021,2]
[421557962,1777879833000,-908.24714737,0.00022,2]
[421557971,1777879833000,-271.0,0.00022,2]
[421557965,1777879833000,-251.0,0.00022,2]
[421557967,1777879833000,-198.0,0.00022,2]
[421557954,1777879833000,-5000.0,0.00021918,2]
[421557956,1777879833000,-2020.22103635,0.00022,2]
[421557969,1777879833000,-450.0,0.00022,2]
[421557958,1777879833000,-164.0,0.00022,2]
[421557960,1777879833000,-1523.0,0.00022,2]
[421557973,1777879833000,-1333.0,0.00022,2]
[421557928,1777879833000,-500.0,0.00020997,2]
[421557975,1777879833000,-351.0,0.00022,2]
[421557979,1777879833000,-2000.0,0.00022228,2]
[421557977,1777879833000,-382.0,0.00022,2]
[421557952,1777879833000,-500.0,0.00021096,2]